bitfinex/quotes_ETHUSD_20240820
["timestamp","ask_amount","ask_price","bid_price","bid_amount"]
[1724142471963,6.03046,2664.5,2664.0,0.55]
[1724142472317,3.75321,2664.4,2664.0,0.55]
[1724142473554,2.2774,2664.5,2664.0,0.55]
[1724142473724,6.03047,2664.5,2664.0,0.55]
[1724142473928,6.03047,2664.5,2664.0,1.22257029]
[1724142474121,6.03047,2664.5,2664.0,4.22257029]
[1724142474328,3.75321,2664.4,2664.0,1.22257029]
[1724142474687,3.75321,2664.4,2664.0,0.55]
[1724142476630,3.75348,2664.2,2664.0,0.55]
[1724142476825,3.75348,2664.2,2663.8,0.55]
[1724142477171,3.75343,2664.3,2663.8,0.55]
[1724142477377,6.871964,2664.2,2663.8,0.55]
[1724142477557,6.1213,2664.2,2663.8,0.55]
[1724142478158,2.3678,2664.2,2663.8,0.55]
[1724142480573,3.75345,2664.3,2663.8,0.55]
[1724142480774,3.75345,2664.3,2663.8,2.50762577]
[1724142480973,3.75345,2664.3,2663.8,0.55]
[1724142481131,3.75345,2664.3,2663.8,2.50758714]
[1724142481346,3.75345,2664.3,2663.9,1.30503255]
[1724142481549,3.75345,2664.3,2664.0,0.55]
[1724142481990,8.123805,2664.3,2663.9,0.55]
[1724142482287,8.123765,2664.3,2663.9,0.55]
[1724142482453,8.123765,2664.3,2663.7,4.95758714]
[1724142482454,4.370335,2664.3,2663.8,0.55]
[1724142483487,0.4370335,2664.2,2663.8,0.55]
[1724142483787,4.370335,2664.3,2663.8,0.55]
[1724142485464,3.75324,2664.4,2663.9,1.30499509]
[1724142485653,3.75324,2664.4,2664.0,0.55]
[1724142485993,3.75324,2664.4,2663.8,2.9518]
[1724142487087,6.16886,2664.5,2663.9,1.30500151]
[1724142487391,3.75306,2664.5,2664.0,0.55]
[1724142487548,0.998723,2664.5,2664.1,2.3573]
[1724142487748,2.4813,2664.8,2664.2,0.55]
[1724142487963,3.75278,2664.7,2664.2,0.55]
[1724142489384,2.4813,2664.8,2664.2,0.55]
[1724142489572,6.23403,2664.8,2664.2,0.55]
[1724142489769,0.998662,2664.7,2664.2,0.55]
[1724142491199,4.751442,2664.7,2664.2,0.55]
[1724142491554,6.14225,2665.0,2664.3,2.2708]
[1724142491752,3.75224,2665.1,2664.4,1.85473766]
[1724142491985,3.75247,2665.0,2664.4,0.55]
[1724142492862,2.3899,2665.2,2664.4,2.2708]
[1724142492863,6.14197,2665.2,2664.4,2.2708]
[1724142493058,6.14197,2665.2,2664.5,0.55]
[1724142493567,3.75278,2664.7,2664.5,0.55]
[1724142493806,6.75158,2665.6,2664.1,1.95758714]
[1724142493807,2.4218,2664.6,2664.1,1.95758714]
[1724142494018,3.75319,2664.4,2664.0,8.09999003]
[1724142494171,3.75319,2664.4,2664.0,5.3601]
[1724142494518,3.75319,2664.4,2664.1,1.30494152]
[1724142494671,6.17478,2664.6,2664.1,1.30494152]
[1724142494870,6.17471,2664.6,2664.1,1.30494152]
[1724142495211,3.75291,2664.6,2664.0,3.0]
[1724142495386,3.75291,2664.6,2664.1,2.65724516]
[1724142495582,3.7527,2664.8,2664.2,2.3658]
[1724142495793,3.75249,2664.9,2664.3,0.55]
[1724142496098,3.75265,2664.8,2664.3,0.55]
[1724142496299,2.4452,2664.7,2664.3,0.55]
[1724142496472,6.19796,2664.7,2664.3,0.55]
[1724142496676,6.19804,2664.7,2664.3,0.55]
[1724142497310,3.75291,2664.6,2664.3,0.55]
[1724142498517,3.75291,2664.6,2664.2,0.55]
[1724142498815,3.75265,2664.8,2664.3,2.3966]
[1724142498978,3.75265,2664.8,2664.4,0.55]
[1724142499385,2.4422,2665.1,2664.4,0.55]
[1724142499633,3.75118,2665.9,2664.5,2.4965]
[1724142499634,3.75236,2665.0,2664.5,2.4965]
[1724142499775,3.75216,2665.2,2664.6,0.55]
[1724142500626,3.75222,2665.1,2664.6,0.55]
[1724142500792,3.75222,2665.1,2664.7,2.455]
[1724142500995,3.75194,2665.3,2664.8,0.55]
[1724142502792,3.75194,2665.3,2664.8,0.8505]
[1724142503426,7.50398,2665.3,2664.8,0.8505]
[1724142503624,3.75194,2665.3,2664.8,0.55]
[1724142503929,7.50395,2665.3,2664.8,0.55]
[1724142504279,3.75208,2665.2,2664.8,0.55]
[1724142504917,3.75241,2665.0,2664.5,2.2964]
[1724142505151,3.75241,2665.0,2664.6,2.32045029]
[1724142505731,7.50483,2665.0,2664.6,2.32045029]
[1724142505886,3.75241,2665.0,2664.6,2.32045029]
[1724142506089,3.75241,2665.0,2664.5,2.2964]
[1724142506404,3.75241,2665.0,2664.6,0.55]
[1724142507201,3.75221,2665.1,2664.7,2.2964]
[1724142507404,3.75196,2665.3,2664.8,0.55]
[1724142507737,3.75213,2665.2,2664.8,0.83464]
[1724142508027,3.7522,2665.1,2664.8,0.55]
[1724142510603,3.75269,2664.8,2664.4,2.2748]
[1724142510903,3.75291,2664.6,2664.4,2.2748]
[1724142511234,7.50543,2664.8,2664.4,2.2748]
[1724142511395,3.75284,2664.7,2664.4,2.2748]
[1724142512342,3.75269,2664.8,2664.5,0.55]
[1724142513098,7.50488,2665.0,2664.5,0.55]
[1724142513534,3.75243,2665.0,2664.6,2.3043]
[1724142513734,3.75243,2665.0,2664.7,0.55]
[1724142514313,3.75216,2665.2,2664.7,0.55]
[1724142514314,3.7522,2665.1,2664.7,0.55]
[1724142514512,3.75216,2665.2,2664.7,0.83543]
[1724142514711,3.75216,2665.2,2664.8,2.2617]
[1724142515050,3.75216,2665.2,2664.9,0.55]
[1724142515541,3.75187,2665.4,2664.9,0.55]
[1724142515757,3.75187,2665.4,2665.0,2.61857]
[1724142516042,3.75187,2665.4,2665.1,0.55]
[1724142516836,7.50376,2665.4,2665.1,0.55]
[1724142517143,6.04044,2665.8,2665.1,0.55]
[1724142517144,3.75157,2665.6,2665.1,0.55]
[1724142518109,7.50315,2665.6,2665.1,0.55]
[1724142518350,3.75164,2665.5,2665.1,0.55]
[1724142519419,3.169815,2665.6,2665.1,0.55]
[1724142519624,3.752,2665.3,2665.1,0.55]
[1724142519830,7.504,2665.3,2665.1,0.55]
[1724142520030,3.752,2665.3,2665.1,0.55]
[1724142520950,3.75172,2665.5,2665.1,0.55]
[1724142521159,3.75187,2665.4,2665.1,0.55]
[1724142522539,3.75172,2665.5,2665.1,0.55]
[1724142522740,7.50344,2665.5,2665.1,0.55]
[1724142522944,3.75182,2665.4,2665.1,0.55]
[1724142525133,3.75195,2665.3,2665.1,0.55]
[1724142526357,3.75195,2665.3,2665.2,0.55]
[1724142526559,3.75195,2665.3,2665.0,0.55]
[1724142528744,3.75174,2665.5,2665.1,2.3433]
[1724142528947,3.75174,2665.5,2665.2,0.55]
[1724142529149,7.50285,2665.7,2665.2,0.55]
[1724142529662,3.7515,2665.6,2665.2,0.55]
[1724142530934,3.75124,2665.8,2665.2,0.55]
[1724142531247,3.75124,2665.8,2665.3,2.4713]
[1724142531474,3.75124,2665.8,2665.4,0.55]
[1724142531475,7.50253,2665.8,2665.4,0.55]
[1724142531996,3.75124,2665.8,2665.4,0.55]
[1724142533695,7.50256,2665.8,2665.4,0.55]
[1724142533849,7.50258,2665.8,2665.4,0.55]
[1724142534045,3.75124,2665.8,2665.4,0.55]
[1724142534250,7.50257,2665.8,2665.4,0.55]
[1724142534479,3.75124,2665.8,2665.4,0.55]
[1724142535498,7.50258,2665.8,2665.4,0.55]
[1724142535679,3.75139,2665.7,2665.4,0.55]
[1724142543571,3.75109,2665.9,2665.4,0.55]
[1724142543758,3.75128,2665.8,2665.4,0.55]
[1724142544253,3.75128,2665.8,2665.5,2.3294]
[1724142544600,3.75128,2665.8,2665.6,0.55]
[1724142548372,3.75081,2666.1,2665.6,0.55]
[1724142548571,3.75081,2666.1,2665.6,0.83794]
[1724142549307,3.75081,2666.1,2665.6,0.55]
[1724142550510,3.75102,2666.0,2665.6,0.55]
[1724142551269,3.75109,2665.9,2665.6,0.55]
[1724142553302,3.75094,2666.0,2665.6,0.55]
[1724142557336,6.1477,2665.9,2665.6,0.55]
[1724142557621,3.75176,2665.5,2665.1,29.477871]
[1724142557830,3.7518,2665.4,2665.1,29.477871]
[1724142561219,3.75199,2665.3,2665.0,0.55]
[1724142561912,3.75179,2665.4,2665.0,0.55]
[1724142562930,7.50366,2665.4,2665.0,0.55]
[1724142563428,3.75179,2665.4,2665.0,0.55]
[1724142563583,3.75194,2665.3,2665.0,0.55]
[1724142563785,3.75179,2665.4,2665.0,0.55]
[1724142564181,7.5037,2665.4,2665.0,0.55]
[1724142564386,3.75179,2665.4,2665.0,0.55]
[1724142571536,3.75157,2665.6,2665.1,2.4751]
[1724142571735,3.7513,2665.8,2665.2,0.55]
[1724142572709,3.75139,2665.7,2665.2,0.55]
[1724142573735,3.75152,2665.6,2665.2,0.55]
[1724142576078,3.75136,2665.7,2665.2,0.55]
[1724142576286,3.75152,2665.6,2665.2,0.55]
[1724142577498,3.75136,2665.7,2665.3,2.2629]
[1724142577679,3.75128,2665.8,2665.4,0.55]
[1724142577881,4.35604,2665.8,2665.2,2.8129]
[1724142578200,3.75157,2665.6,2665.2,2.8129]
[1724142580206,3.75136,2665.7,2665.2,2.8129]
[1724142580369,3.75136,2665.7,2665.2,3.28985157]
[1724142582866,3.75129,2665.8,2665.3,2.3049]
[1724142583062,3.75129,2665.8,2665.4,0.55]
[1724142583368,3.75109,2665.9,2665.5,2.3049]
[1724142583568,3.75097,2666.0,2665.6,0.55]
[1724142583972,3.75135,2665.7,2665.6,0.55]
[1724142584673,3.75121,2665.8,2665.6,0.55]
[1724142585178,3.75135,2665.7,2665.6,0.55]
[1724142585586,7.5027,2665.7,2665.6,0.55]
[1724142586765,3.75192,2665.3,2665.0,4.32059901]
[1724142586995,3.75192,2665.3,2665.1,0.51029019]
[1724142587171,3.75192,2665.3,2665.2,0.55]
[1724142587855,3.75178,2665.4,2665.2,0.55]
[1724142588613,3.75178,2665.4,2665.1,0.55]
[1724142592716,3.75165,2665.5,2665.1,0.55]
[1724142596129,7.50307,2665.6,2665.1,0.55]
[1724142596681,3.75166,2665.5,2665.1,0.55]
[1724142598983,3.75166,2665.5,2665.2,2.4309]
[1724142599184,3.75166,2665.5,2665.3,0.55]
[1724142600796,3.75151,2665.6,2665.3,0.55]
[1724142600998,3.75136,2665.7,2665.3,0.55]
[1724142601842,3.75136,2665.7,2665.3,0.84809]
[1724142602143,3.75096,2666.0,2665.5,2.4192]
[1724142602296,3.75096,2666.0,2665.6,0.55]
[1724142602297,3.75108,2665.9,2665.6,0.55]
[1724142602699,3.75125,2665.8,2665.4,0.55]
[1724142602934,3.75125,2665.8,2665.0,4.17345434]
[1724142602935,3.75171,2665.5,2665.3,0.55]
[1724142603131,3.75171,2665.5,2665.1,2.97]
[1724142603845,7.50345,2665.5,2665.1,2.97]
[1724142604347,3.75171,2665.5,2665.1,2.97]
[1724142606032,3.75171,2665.5,2665.1,3.34523029]
[1724142606266,3.75171,2665.5,2665.2,1.30443319]
[1724142606464,3.75171,2665.5,2665.3,0.55]
[1724142606705,3.75171,2665.5,2665.1,3.34523029]
[1724142607010,3.75171,2665.5,2665.2,1.30443573]
[1724142607196,3.75171,2665.5,2665.3,0.55]
[1724142607394,3.75171,2665.5,2665.1,3.34523029]
[1724142609327,3.7515,2665.6,2665.2,0.41275332]
[1724142609522,3.75147,2665.7,2665.3,1.85439114]
[1724142609724,3.7515,2665.6,2665.3,0.55]
[1724142610564,3.75178,2665.4,2665.3,0.55]
[1724142610772,3.75178,2665.4,2664.9,1.17345434]
[1724142610773,3.75178,2665.4,2665.2,0.55]
[1724142611008,3.75178,2665.4,2665.0,2.50681479]
[1724142611205,3.75178,2665.4,2665.0,0.55]
[1724142611404,3.75178,2665.4,2665.1,1.30452076]
[1724142611595,3.75178,2665.4,2665.2,0.55]
[1724142611797,3.75178,2665.4,2665.0,0.55]
[1724142612122,3.75194,2665.3,2665.0,0.55]
[1724142612473,3.75194,2665.3,2664.9,2.50686476]
[1724142612676,3.75194,2665.3,2664.9,4.34267493]
[1724142613001,3.75194,2665.3,2665.0,1.30454804]
[1724142613169,3.75194,2665.3,2665.1,0.55]
[1724142613376,6.16568,2665.4,2664.9,4.34267493]
[1724142613600,6.16568,2665.4,2664.9,2.9462]
[1724142614631,3.75168,2665.5,2664.9,2.9462]
[1724142614632,7.5034,2665.5,2665.0,1.30455859]
[1724142614929,3.75178,2665.4,2665.1,0.55]
[1724142615331,3.75178,2665.4,2665.0,0.55]
[1724142617334,3.75168,2665.5,2665.0,0.96417037]
[1724142617540,7.50293,2665.7,2665.2,2.3419]
[1724142617830,3.75146,2665.7,2665.3,0.55]
[1724142618001,7.50291,2665.7,2665.3,0.55]
[1724142618751,3.75151,2665.6,2665.3,0.55]
[1724142619037,3.75145,2665.7,2665.3,0.55]
[1724142619038,3.75164,2665.5,2665.3,0.55]
[1724142619520,3.75164,2665.5,2665.1,0.55]
[1724142620190,3.7515,2665.6,2665.1,0.55]
[1724142621241,3.75164,2665.5,2665.1,0.55]
[1724142623440,7.50337,2665.5,2665.1,0.55]
[1724142623651,3.75206,2665.2,2664.8,1.19548]
[1724142623810,0.8494661,2665.5,2664.5,1.56460579]
[1724142623811,3.75271,2664.8,2664.5,0.78230289]
[1724142623995,3.75271,2664.8,2664.6,1.30477064]
[1724142624197,3.75271,2664.8,2664.4,2.4902]
[1724142624636,3.75277,2664.7,2664.4,2.4902]
[1724142625293,3.75277,2664.7,2664.5,0.55]
[1724142625527,3.75262,2664.9,2664.5,0.55]
[1724142625728,3.75262,2664.9,2664.4,2.4902]
[1724142625890,3.75268,2664.8,2664.4,2.4902]
[1724142627012,3.75268,2664.8,2664.5,0.55]
[1724142627740,3.75251,2664.9,2664.5,0.55]
[1724142627971,3.75251,2664.9,2664.5,1.04974075]
[1724142629130,3.75236,2665.0,2664.5,1.04974075]
[1724142629939,7.50478,2665.0,2664.5,1.04974075]
[1724142630146,3.75236,2665.0,2664.5,0.55]
[1724142631296,7.50478,2665.0,2664.5,0.55]
[1724142631503,3.75236,2665.0,2664.5,0.55]
[1724142633742,3.75221,2665.1,2664.6,2.2633]
[1724142633896,3.75216,2665.2,2664.7,0.55]
[1724142634104,3.75216,2665.2,2664.8,2.2633]
[1724142634302,3.75194,2665.3,2664.9,0.55]
[1724142634741,3.75178,2665.4,2664.9,0.55]
[1724142634949,3.75178,2665.4,2665.0,2.3223]
[1724142635111,3.75178,2665.4,2665.1,0.55]
[1724142636944,3.75175,2665.5,2665.1,0.55]
[1724142637245,3.75159,2665.6,2665.1,0.55]
[1724142637808,3.75164,2665.5,2665.1,0.55]
[1724142638025,3.75164,2665.5,2665.2,0.315953]
[1724142638226,3.75164,2665.5,2665.3,0.55]
[1724142638476,3.7514,2665.7,2665.3,0.55]
[1724142638672,7.50289,2665.7,2665.1,0.55]
[1724142638969,3.7515,2665.6,2665.2,2.4118]
[1724142639134,3.7515,2665.6,2665.3,0.55]
[1724142640477,3.75165,2665.5,2665.3,0.55]
[1724142641064,3.75165,2665.5,2665.1,0.55]
[1724142641898,3.7515,2665.6,2665.1,0.55]
[1724142642195,3.75181,2665.4,2665.1,0.55]
[1724142642754,8.11804,2665.6,2665.1,0.55]
[1724142643690,3.7515,2665.6,2665.1,0.55]
[1724142644493,3.75095,2666.0,2665.2,2.3657]
[1724142644693,3.75095,2666.0,2665.4,2.3657]
[1724142644694,3.75122,2665.8,2665.4,2.3657]
[1724142644906,3.75122,2665.8,2665.5,0.55]
[1724142645564,2.2714,2666.2,2665.5,0.55]
[1724142645565,3.75138,2665.7,2665.5,0.55]
[1724142646105,3.7515,2665.6,2665.5,0.55]
[1724142646418,3.7515,2665.6,2665.3,0.55]
[1724142646561,3.75138,2665.7,2665.3,0.55]
[1724142646562,3.75166,2665.5,2665.3,0.55]
[1724142647006,3.75151,2665.6,2665.3,0.55]
[1724142649293,3.75118,2665.9,2665.4,2.2827]
[1724142649493,3.75089,2666.1,2665.5,0.55]
[1724142649733,3.75089,2666.1,2665.3,1.14157]
[1724142649734,7.50177,2666.1,2665.4,2.4881]
[1724142649932,7.50177,2666.1,2665.5,0.55]
[1724142649933,3.75088,2666.1,2665.5,0.55]
[1724142650227,3.75088,2666.1,2665.6,2.4881]
[1724142650428,3.75088,2666.1,2665.4,0.19238729]
[1724142650429,7.50226,2665.9,2665.7,0.55]
[1724142650615,3.75121,2665.8,2665.7,0.55]
[1724142650934,3.75161,2665.6,2665.2,2.3311]
[1724142651233,3.75136,2665.7,2665.3,0.55]
[1724142651234,3.75166,2665.5,2665.3,0.55]
[1724142651451,3.75166,2665.5,2665.0,9.593471]
[1724142651452,3.75166,2665.5,2665.1,3.55]
[1724142651732,3.75185,2665.4,2665.0,9.593471]
[1724142652035,3.75185,2665.4,2665.0,2.3311]
[1724142652801,3.75185,2665.4,2665.1,0.55]
[1724142653115,3.75166,2665.5,2665.1,0.55]
[1724142653433,7.5034,2665.5,2665.1,0.55]
[1724142653588,3.75166,2665.5,2665.1,0.55]
[1724142654590,7.50341,2665.5,2665.1,0.55]
[1724142655237,3.75181,2665.4,2665.1,0.55]
[1724142655588,3.75181,2665.4,2665.0,0.55]
[1724142656803,4.743131,2665.5,2665.0,0.55]
[1724142656990,3.75166,2665.5,2665.0,0.55]
[1724142657686,3.75166,2665.5,2664.9,3.55]
[1724142658342,7.50337,2665.5,2664.9,3.55]
[1724142658506,7.5034,2665.5,2664.9,3.55]
[1724142658920,3.7518,2665.4,2664.9,3.55]
[1724142659234,3.7518,2665.4,2664.9,7.10817781]
[1724142659798,3.75166,2665.5,2664.9,7.10817781]
[1724142659799,3.75194,2665.3,2664.9,7.10817781]
[1724142660096,3.75194,2665.3,2664.9,3.55]
[1724142660810,7.50398,2665.3,2664.9,0.55]
[1724142661008,3.75221,2665.1,2664.7,27.012371]
[1724142661535,3.75212,2665.2,2664.7,27.012371]
[1724142662646,3.75212,2665.2,2664.8,0.55]
[1724142662998,3.75206,2665.2,2664.8,0.55]
[1724142664204,9.99751,2665.4,2664.8,0.55]
[1724142664485,3.752,2665.3,2664.9,2.4164]
[1724142664661,3.752,2665.3,2665.0,0.55]
[1724142665382,3.75207,2665.2,2665.0,0.55]
[1724142668002,3.75181,2665.4,2665.0,0.55]
[1724142669292,3.75164,2665.5,2665.0,0.55]
[1724142669894,7.50338,2665.5,2665.0,0.55]
[1724142670059,3.75179,2665.4,2665.0,0.55]
[1724142670255,3.75157,2665.6,2665.0,0.84664]
[1724142670612,3.75143,2665.7,2665.1,2.3971]
[1724142670787,7.50292,2665.7,2665.2,0.55]
[1724142671087,7.50287,2665.7,2665.2,0.55]
[1724142671280,3.75155,2665.6,2665.2,0.55]
[1724142671578,0.375088,2666.0,2665.2,0.55]
[1724142671579,3.75117,2665.9,2665.3,2.2956]
[1724142671754,6.15648,2666.1,2665.3,2.2956]
[1724142671954,3.75095,2666.0,2665.4,0.55]
[1724142672561,3.75143,2665.7,2665.4,0.55]
[1724142679586,3.75117,2665.9,2665.4,0.55]
[1724142679587,3.75121,2665.8,2665.4,0.55]
[1724142679772,3.75139,2665.7,2665.4,0.55]
[1724142681000,3.75117,2665.9,2665.4,0.55]
[1724142681381,3.75122,2665.8,2665.4,0.55]
[1724142681559,6.05484,2666.0,2665.4,0.55]
[1724142681765,3.75094,2666.0,2665.5,2.4232]
[1724142681997,3.75094,2666.0,2665.6,0.55]
[1724142681998,3.75123,2665.8,2665.6,0.55]
[1724142682344,3.7515,2665.6,2665.3,2.397]
[1724142682547,3.7515,2665.6,2665.4,0.55]
[1724142684516,3.75069,2666.2,2665.5,2.3351]
[1724142684850,3.75086,2666.1,2665.6,0.83851]
[1724142684996,3.75086,2666.1,2665.6,0.55]
[1724142688851,9.85228,2666.3,2665.6,0.55]
[1724142689005,6.12271,2666.5,2665.7,2.4743]
[1724142689210,3.75038,2666.4,2665.9,2.2719]
[1724142689429,3.75038,2666.4,2666.0,0.55]
[1724142689820,3.75011,2666.6,2666.0,0.55]
[1724142690016,3.75063,2666.3,2666.0,0.55]
[1724142690248,4.125723,2666.2,2666.0,0.55]
[1724142690516,0.375063,2666.2,2665.8,0.55]
[1724142690721,3.75063,2666.3,2665.8,0.55]
[1724142691225,3.75062,2666.3,2665.8,0.55]
[1724142691455,3.75066,2666.2,2665.8,0.55]
[1724142693694,7.5014,2666.2,2665.8,0.55]
[1724142693882,3.75066,2666.2,2665.8,0.55]
[1724142694465,3.75083,2666.1,2665.8,0.55]
[1724142696116,3.045849,2666.1,2665.4,2.2667]
[1724142696420,3.75015,2666.6,2665.1,2.2667]
[1724142696421,3.75165,2665.5,2665.1,2.2667]
[1724142696572,7.50337,2665.5,2665.1,2.2667]
[1724142696765,3.75199,2665.3,2664.8,2.2667]
[1724142696999,3.75199,2665.3,2664.8,4.74226894]
[1724142697203,3.75207,2665.2,2664.8,2.2667]
[1724142697432,3.75222,2665.1,2664.8,2.2667]
[1724142697934,7.50404,2665.3,2664.8,2.2667]
[1724142698254,3.75199,2665.3,2664.8,2.2667]
[1724142698534,3.75172,2665.5,2664.8,4.46837]
[1724142698840,7.5029,2665.7,2664.8,2.20167]
[1724142699030,3.75144,2665.7,2665.0,2.4991]
[1724142699234,3.75158,2665.6,2665.0,2.4991]
[1724142699389,3.75158,2665.6,2665.0,3.20244963]
[1724142699585,3.75158,2665.6,2665.1,0.55]
[1724142701240,3.75157,2665.6,2665.1,0.55]
[1724142708129,3.75165,2665.5,2665.1,0.55]
[1724142711920,3.7515,2665.6,2665.1,0.55]
[1724142712139,3.7515,2665.6,2665.2,2.3721]
[1724142712471,3.7515,2665.6,2665.3,0.55]
[1724142713391,7.50253,2665.8,2665.3,0.55]
[1724142713540,3.75123,2665.8,2665.4,2.4768]
[1724142713872,3.75123,2665.8,2665.5,0.55]
[1724142714243,3.75103,2666.0,2665.5,0.55]
[1724142714448,3.75075,2666.2,2665.7,2.4242]
[1724142714646,3.75032,2666.5,2665.9,2.4242]
[1724142714944,3.75009,2666.6,2666.0,0.55]
[1724142714945,3.75037,2666.4,2666.0,0.55]
[1724142715151,7.50082,2666.4,2666.0,0.55]
[1724142715472,3.75037,2666.4,2666.0,0.55]
[1724142717260,3.75023,2666.5,2666.0,0.55]
[1724142717466,3.7502,2666.6,2666.0,0.55]
[1724142717670,3.7502,2666.6,2666.1,0.29742]
[1724142717867,3.7502,2666.6,2666.2,0.55]
[1724142719375,3.7502,2666.6,2666.2,0.54759689]
[1724142719910,3.7502,2666.6,2666.3,2.3828]
[1724142720197,3.74996,2666.7,2666.3,2.3828]
[1724142720403,3.74989,2666.8,2666.3,2.3828]
[1724142721359,3.74989,2666.8,2666.4,0.55]
[1724142722112,2.2532,2666.9,2666.4,0.55]
[1724142722113,3.74973,2666.9,2666.4,0.55]
[1724142722272,7.499,2667.1,2666.4,0.84328]
[1724142722479,3.74948,2667.1,2666.4,0.84328]
[1724142722799,4.33733088,2667.0,2666.4,0.84328]
[1724142723450,0.58779088,2667.0,2666.5,0.322608]
[1724142723574,3.74948,2667.1,2666.6,3.0472]
[1724142723775,7.49896,2667.1,2666.6,3.0472]
[1724142723976,3.74948,2667.1,2666.6,3.0472]
[1724142724207,3.74947,2667.1,2666.6,3.0472]
[1724142724713,3.74955,2667.0,2666.6,3.0472]
[1724142725206,3.74932,2667.2,2666.6,3.35192]
[1724142725565,3.74921,2667.3,2666.6,3.35192]
[1724142725566,7.4984,2667.3,2666.6,3.35192]
[1724142725928,3.74919,2667.3,2666.6,3.35192]
[1724142726608,3.74918,2667.3,2666.6,3.35192]
[1724142726902,3.74918,2667.3,2666.7,0.335192]
[1724142727080,3.74918,2667.3,2666.8,0.55]
[1724142728389,7.49838,2667.3,2666.8,0.55]
[1724142728589,7.49836,2667.3,2666.8,0.55]
[1724142728832,3.74918,2667.3,2666.8,0.55]
[1724142729012,7.49838,2667.3,2666.8,0.55]
[1724142729590,3.74918,2667.3,2666.8,0.55]
[1724142730136,3.74896,2667.4,2666.9,2.3086]
[1724142730427,3.74893,2667.5,2667.0,0.55]
[1724142730637,3.74875,2667.6,2667.0,0.55]
[1724142731728,3.74885,2667.5,2667.0,0.55]
[1724142734693,1.581,2667.7,2667.0,0.55]
[1724142734942,2.3218,2667.8,2667.0,0.55]
[1724142734943,3.74931,2667.2,2667.0,0.55]
[1724142735123,3.74925,2667.2,2667.0,0.55]
[1724142735436,3.74925,2667.2,2666.7,2.4896]
[1724142735437,3.74946,2667.1,2666.8,0.55]
[1724142735747,3.74993,2666.8,2666.4,2.3876]
[1724142736046,5.33099,2666.7,2666.4,2.3876]
[1724142736211,3.74999,2666.7,2666.4,2.3876]
[1724142737814,3.74999,2666.7,2666.5,0.55]
[1724142739045,7.49844,2667.3,2666.6,2.3821]
[1724142739245,3.74939,2667.1,2666.7,0.55]
[1724142739901,3.74922,2667.3,2666.7,0.55]
[1724142740127,3.74921,2667.3,2666.8,0.29321]
[1724142740343,3.74921,2667.3,2666.9,0.55]
[1724142740638,3.74932,2667.2,2666.9,0.55]
[1724142740842,3.74921,2667.3,2666.7,0.55]
[1724142741044,3.7494,2667.1,2666.7,0.55]
[1724142741907,3.74921,2667.3,2666.7,0.55]
[1724142742758,2.3021,2667.5,2666.7,0.55]
[1724142742905,3.74947,2667.1,2666.7,0.55]
[1724142743098,7.49896,2667.1,2666.7,0.55]
[1724142743305,3.74947,2667.1,2666.7,0.55]
[1724142743737,7.49896,2667.1,2666.7,0.55]
[1724142743915,3.74947,2667.1,2666.7,0.55]
[1724142745048,3.74918,2667.3,2666.7,0.55]
[1724142745283,3.74918,2667.3,2666.7,0.84321]
[1724142745540,3.74932,2667.2,2666.7,0.84321]
[1724142747211,3.7494,2667.1,2666.7,0.84321]
[1724142747561,3.7494,2667.1,2666.7,0.55]
[1724142748915,3.74974,2666.9,2666.6,2.3821]
[1724142749120,7.4995,2666.9,2666.6,2.3821]
[1724142749302,3.74989,2666.8,2666.6,2.3821]
[1724142749506,4.499773,2666.8,2666.4,2.4088]
[1724142749955,7.49973,2666.8,2666.4,2.4088]
[1724142750138,3.74981,2666.8,2666.4,2.4088]
[1724142750310,3.74996,2666.7,2666.4,2.4088]
[1724142750506,7.49969,2666.8,2666.4,2.4088]
[1724142751114,3.74981,2666.8,2666.4,2.4088]
[1724142751761,3.74996,2666.7,2666.4,2.4088]
[1724142752413,7.49973,2666.8,2666.4,2.4088]
[1724142752848,3.74995,2666.7,2666.4,2.4088]
[1724142753358,3.74981,2666.8,2666.4,2.4088]
[1724142754921,3.75003,2666.7,2666.4,2.4088]
[1724142755144,3.75003,2666.7,2666.3,7.262371]
[1724142755347,3.75036,2666.5,2666.3,7.262371]
[1724142755559,3.75036,2666.5,2665.5,0.78230289]
[1724142755560,3.75107,2665.9,2665.8,7.262371]
[1724142755864,3.7515,2665.6,2665.3,2.3643]
[1724142756564,6.1084,2666.2,2665.3,2.3643]
[1724142756565,3.75137,2665.7,2665.3,2.3643]
[1724142756891,7.50282,2665.7,2665.3,2.3643]
[1724142757030,3.75137,2665.7,2665.3,2.3643]
[1724142758473,3.75137,2665.7,2665.4,0.55]
[1724142759133,3.75123,2665.8,2665.4,0.55]
[1724142762766,3.75117,2665.9,2665.4,0.55]
[1724142762767,3.75136,2665.7,2665.4,0.55]
[1724142764367,3.75122,2665.8,2665.4,0.55]
[1724142764885,3.75117,2665.9,2665.4,0.55]